[Event "SVK Extraliga 2019-20"]
[Site "Slovakia"]
[Date "2019.10.19"]
[Round "1.6"]
[White "Zambor, Norbert"]
[Black "Zwardon, Vojtech"]
[Result "0-1"]
[ECO "B22"]
[WhiteElo "2281"]
[BlackElo "2471"]
[Annotator "ChessBase"]
[PlyCount "152"]
[EventDate "2019.10.19"]
[EventType "team-tourn"]
[EventCountry "SVK"]
[SourceTitle "playchess.com"]
[Source "ChessBase"]
[SourceQuality "1"]
[WhiteTeam "Prakovce"]
[BlackTeam "Zilina"]
[TimeControl "40/5400+30:1800+30"]

1. e4 {[%emt 0:00:00]} c5 {[%emt 0:00:00]} 2. Nf3 {[%emt 0:00:00]} Nc6 {[%emt 0:00:00]} 3. c3 {[%emt 0:04:46]} Nf6 {[%emt 0:00:00]} 4. e5 {[%emt 0:00:40]} Nd5 {[%emt 0:00:00]} 5. d4 {[%emt 0:00:39]} cxd4 {[%emt 0:00:00]} 6. cxd4 {[%emt 0:00:54]} d6 {[%emt 0:00:00]} 7. Bc4 {[%emt 0:04:37]} Be6 {[%emt 0:00:00]} 8. Qe2 {[%emt 0:24:45]} g6 {[%emt 0:02:48]} 9. O-O {[%emt 0:05:16]} Bg7 {[%emt 0:00:34]} 10. Rd1 {[%emt 0:12:52]} O-O {[%emt 0:01:09]} 11. Ng5 {[%emt 0:05:52]} dxe5 {[%emt 0:02:41]} 12. Nxe6 {[%emt 0:01:40]} fxe6 {[%emt 0:00:25]} 13. dxe5 {[%emt 0:09:15]} Nxe5 {[%emt 0:01:32]} 14. Nc3 {[%emt 0:03:48]} Nxc3 {[%emt 0:03:11]} 15. bxc3 {[%emt 0:06:13]} Qc8 {[%emt 0:02:11]} 16. Bb3 {[%emt 0:00:15]} a5 {[%emt 0:00:51]} 17. Bh6 {[%emt 0:02:28]} Bxh6 {[%emt 0:01:10]} 18. Qxe5 {[%emt 0:00:08]} Rf6 {[%emt 0:00:14]} 19. Rd4 {[%emt 0:03:39]} Kf7 {[%emt 0:03:13]} 20. Re1 {[%emt 0:04:42]} Ra6 {[%emt 0:00:32]} 21. Rh4 {[%emt 0:03:04]} Kg7 {[%emt 0:02:00]} 22. Rc4 {[%emt 0:01:02]} Qd8 {[%emt 0:06:53]} 23. g3 {[%emt 0:03:32]} Rd6 {[%emt 0:00:31]} 24. Rd4 {[%emt 0:00:11]} Qb6 {[%emt 0:07:25]} 25. Red1 {[%emt 0:00:27]} Kf7 {[%emt 0:01:00]} 26. g4 {[%emt 0:01:35]} Rc6 {[%emt 0:04:01]} 27. R1d3 {[%emt 0:00:38]} Rc5 {[%emt 0:02:39]} 28. Qe4 {[%emt 0:00:05]} Bf4 {[%emt 0:00:47]} 29. Rf3 {[%emt 0:00:50]} Re5 {[%emt 0:05:27]} 30. Qd3 {[%emt 0:00:10]} Re1+ {[%emt 0:00:13]} 31. Kg2 {[%emt 0:00:03]} Qc7 {[%emt 0:01:00]} 32. Re4 {[%emt 0:01:14]} Rxe4 {[%emt 0:03:47]} 33. Qxe4 {[%emt 0:00:01]} Kg7 {[%emt 0:01:20]} 34. Bxe6 {[%emt 0:00:56]} Bxh2 {[%emt 0:00:57]} 35. Bd5 {[%emt 0:00:34]} b6 {[%emt 0:02:26]} 36. Rxf6 {[%emt 0:00:16]} exf6 {[%emt 0:00:11]} 37. c4 {[%emt 0:00:32]} Be5 {[%emt 0:00:21]} 38. a4 {[%emt 0:00:21]} Qd7 {[%emt 0:01:48]} 39. Bc6 {[%emt 0:00:45]} Qd2 {[%emt 0:00:13]} 40. Qe3 {[%emt 0:00:25]} Qd1 {[%emt 0:06:17]} 41. Qf3 {[%emt 0:02:17]} Qc2 {[%emt 0:00:29]} 42. Qe4 {[%emt 0:00:31]} Qc1 {[%emt 0:00:22]} 43. Bb5 {[%emt 0:10:49]} Qg5 {[%emt 0:02:23]} 44. Kf1 {[%emt 0:01:14]} Qc1+ {[%emt 0:03:05]} 45. Kg2 {[%emt 0:00:37]} Kh6 {[%emt 0:00:10]} 46. Qe3+ {[%emt 0:04:50]} Qxe3 {[%emt 0:00:10]} 47. fxe3 {[%emt 0:00:02]} Kg5 {[%emt 0:00:05]} 48. Bd7 {[%emt 0:02:31]} Kh4 {[%emt 0:00:18]} 49. e4 {[%emt 0:01:12]} Kg5 {[%emt 0:01:30]} 50. Kf3 {[%emt 0:00:09]} Kh6 {[%emt 0:00:04]} 51. Be6 {[%emt 0:02:48]} Kg7 {[%emt 0:00:32]} 52. Ke3 {[%emt 0:00:57]} Kf8 {[%emt 0:01:03]} 53. Kd3 {[%emt 0:01:14]} Ke7 {[%emt 0:01:00]} 54. Bg8 {[%emt 0:01:08]} h6 {[%emt 0:00:25]} 55. Ke3 {[%emt 0:03:47]} h5 {[%emt 0:00:00]} 56. gxh5 {[%emt 0:01:07]} gxh5 {[%emt 0:00:01]} 57. Bh7 {[%emt 0:00:12]} Kd6 {[%emt 0:00:05]} 58. Kf3 {[%emt 0:03:03]} Kc5 {[%emt 0:00:04]} 59. Bg6 {[%emt 0:00:44]} h4 {[%emt 0:00:12]} 60. Kg4 {[%emt 0:00:29]} Bg3 {[%emt 0:00:01]} 61. Be8 {[%emt 0:01:01]} Kxc4 {[%emt 0:00:25]} 62. Bd7 {[%emt 0:00:20]} Kd4 {[%emt 0:00:59]} 63. Kf3 {[%emt 0:00:24]} Bd6 {[%emt 0:01:06]} 64. Be6 {[%emt 0:00:41]} b5 {[%emt 0:01:55]} 65. axb5 {[%emt 0:00:17]} Kc5 {[%emt 0:00:04]} 66. Kg4 {[%emt 0:00:51]} Bg3 {[%emt 0:00:04]} 67. Kf3 {[%emt 0:00:34]} Kxb5 {[%emt 0:00:16]} 68. Ke3 {[%emt 0:00:09]} Kc5 {[%emt 0:00:18]} 69. Kd3 {[%emt 0:00:09]} Kd6 {[%emt 0:00:07]} 70. Bf5 {[%emt 0:00:26]} Ke5 {[%emt 0:00:04]} 71. Bd7 {[%emt 0:01:08]} Kf4 {[%emt 0:00:06]} 72. e5 {[%emt 0:00:37]} fxe5 {[%emt 0:00:08]} 73. Bc6 {[%emt 0:00:10]} h3 {[%emt 0:00:08]} 74. Ke2 {[%emt 0:00:11]} e4 {[%emt 0:00:17]} 75. Kf1 {[%emt 0:00:09]} h2 {[%emt 0:00:23]} 76. Kg2 {[%emt 0:00:03]} e3 {[%emt 0:00:20]} 0-1

[Event "SVK Extraliga 2019-20"]
[Site "Slovakia"]
[Date "2019.10.19"]
[Round "1.6"]
[White "Krak, Tomas"]
[Black "Csonka, Attila Istvan"]
[Result "1-0"]
[ECO "A14"]
[WhiteElo "2269"]
[BlackElo "2355"]
[Annotator "NA"]
[PlyCount "83"]
[EventDate "2019.10.19"]
[EventType "team-tourn"]
[EventCountry "SVK"]
[SourceTitle "playchess.com"]
[Source "ChessBase"]
[SourceQuality "1"]
[WhiteTeam "Humenne"]
[BlackTeam "Streda"]
[TimeControl "40/5400+30:1800+30"]

{[%evp 16,64,13,32767,-22,32767,32767,-23,0,0,86,8,25,13,18,32767,107,109,129,125,131,107,106,94,99,101,108,128,119,124,32767,120,118,100,162,152,166,157,189,32767,32767,232,218,261,32767,234,184,254,32767,241,208]} 1. Nf3 {[%emt 0:01:21]} Nf6 {[%emt 0:00:00]} 2. c4 {[%emt 0:00:05]} e6 {[%emt 0:00:00]} 3. g3 {[%emt 0:00:24]} d5 {[%emt 0:00:00]} 4. Bg2 {[%emt 0:00:18]} Be7 {[%emt 0:00:05]} 5. O-O {[%emt 0:00:13]} O-O {[%emt 0:00:06]} 6. d4 {[%emt 0:00:38]} Nbd7 {[%emt 0:00:08]} 7. b3 {[%emt 0:17:50]} c6 {[%emt 0:01:24]} 8. Qc2 {[%emt 0:00:26]} b6 {[%emt 0:00:15]} 9. Nc3 {[%emt 0:00:19]} Ba6 {[%emt 0:00:27]} 10. Nd2 {[%emt 0:05:38]} Rc8 {[%emt 0:02:03] E08: Closed Catalan: Main Line: 7 Qc2} (10... b5 11. e4 dxc4 12. bxc4 bxc4 13. Rd1 Qa5 14. Bf1 Nb6 15. Bb2 Rfd8 16. Nf3 h6 17. a4 Rac8 18. Nb1 {1-0 (39) Postny,E (2615)-Geller,J (2518) St Petersburg 2018}) 11. e4 {[%emt 0:10:07]} c5 {[%emt 0:03:46]} 12. exd5 {[%emt 0:11:27]} exd5 {[%emt 0:00:21]} (12... cxd4 $11 {keeps the balance.} 13. dxe6 fxe6) 13. Nxd5 {[%emt 0:03:31]} (13. dxc5 $16 d4 14. c6) 13... Nxd5 {[%emt 0:04:38]} 14. Bxd5 {[%emt 0:00:36]} Nf6 {[%emt 0:00:06]} 15. Bg2 {[%emt 0:02:02]} Qxd4 {[%emt 0:08:15]} (15... cxd4 $11 16. Bb2 b5) 16. Bb2 {[%emt 0:00:51]} Qg4 $146 {[%emt 0:00:06]} ({Predecessor:} 16... Qd7 17. Rad1 Qc7 18. Rfe1 Rcd8 19. Ne4 Rxd1 20. Rxd1 Nxe4 21. Bxe4 h6 22. Bd5 Kh8 23. Qf5 Bc8 24. Qh5 f6 25. Qg6 {1-0 (25) Erdeljan,M-Ljubicic,A Yugoslavia 1989}) 17. Rfe1 {[%emt 0:02:22]} Rc7 {[%emt 0:01:02]} 18. Ne4 {[%emt 0:05:19]} Bb7 {[%emt 0:06:39]} 19. Bxf6 {[%emt 0:06:20]} Bxf6 {[%emt 0:01:16]} 20. Nxf6+ {[%emt 0:00:21]} gxf6 {[%emt 0:00:05]} 21. Bxb7 {[%emt 0:01:51]} Rxb7 {[%emt 0:00:16]} 22. Re4 {[%emt 0:03:59]} Qg6 {[%emt 0:01:29]} 23. Qe2 {[%emt 0:01:03]} f5 {[%emt 0:04:01]} 24. Re5 {[%emt 0:05:46]} Rd8 {[%emt 0:02:08]} (24... Rd7 $16) 25. Rd1 {[%emt 0:01:31]} Rxd1+ {[%emt 0:05:34]} 26. Qxd1 {[%emt 0:00:09]} f6 {[%emt 0:14:26]} 27. Qd5+ {[%emt 0:02:06]} Qf7 {[%emt 0:00:15]} 28. Rxf5 {[%emt 0:04:14]} Rd7 {[%emt 0:02:14]} 29. Qf3 {[%emt 0:01:48]} Rd6 {[%emt 0:01:19]} 30. Kg2 {[%emt 0:00:55]} Kg7 {[%emt 0:02:40]} 31. h4 {[%emt 0:05:31]} Qe6 {[%emt 0:02:30]} 32. a4 $18 {[%emt 0:02:44]} Rd4 {[%emt 0:01:30]} 33. Rd5 {[%emt 0:02:18]} Rxd5 {[%emt 0:02:21]} 34. cxd5 {[%emt 0:00:38]} Qe5 {[%emt 0:01:23]} 35. Qd3 {[%emt 0:00:31]} Kf8 {[%emt 0:01:40]} 36. d6 {[%emt 0:01:06]} Ke8 {[%emt 0:00:03]} 37. Qb5+ {[%emt 0:00:22]} Kf8 {[%emt 0:02:03]} 38. Qc6 {[%emt 0:00:17]} f5 {[%emt 0:01:52]} 39. Qa8+ {[%emt 0:01:54]} Qe8 {[%emt 0:00:46]} 40. Qd5 {[%emt 0:00:23]} Qe4+ {[%emt 0:00:27]} 41. Qxe4 {[%emt 0:30:15]} fxe4 {[%emt 0:30:03]} 42. Kf1 {[%emt 0:00:35]} 1-0

[Event "SVK Extraliga 2019-20"]
[Site "Slovakia"]
[Date "2019.10.19"]
[Round "1.6"]
[White "Haring, Viktor"]
[Black "Matejovic, Juraj"]
[Result "0-1"]
[ECO "B45"]
[WhiteElo "2266"]
[BlackElo "2228"]
[Annotator "NA"]
[PlyCount "116"]
[EventDate "2019.10.19"]
[EventType "team-tourn"]
[EventCountry "SVK"]
[SourceTitle "playchess.com"]
[Source "ChessBase"]
[SourceQuality "1"]
[WhiteTeam "Liptovska"]
[BlackTeam "Dunajov"]
[TimeControl "40/5400+30:1800+30"]

1. e4 {[%emt 0:00:00]} c5 {[%emt 0:00:00]} 2. Nf3 {[%emt 0:00:06]} e6 {[%emt 0:00:09]} 3. d4 {[%emt 0:00:20]} cxd4 {[%emt 0:00:12]} 4. Nxd4 {[%emt 0:00:12]} Nc6 {[%emt 0:00:09]} 5. Nc3 {[%emt 0:01:07]} Nf6 {[%emt 0:00:10]} 6. Ndb5 {[%emt 0:01:56]} Bb4 {[%emt 0:05:43]} 7. a3 {[%emt 0:06:11]} Bxc3+ {[%emt 0:00:41]} 8. Nxc3 {[%emt 0:00:12]} d5 {[%emt 0:00:17]} 9. exd5 {[%emt 0:02:00]} exd5 {[%emt 0:00:14]} 10. Bd3 {[%emt 0:12:47]} O-O {[%emt 0:00:53]} 11. O-O {[%emt 0:00:54]} d4 {[%emt 0:00:23]} 12. Ne2 {[%emt 0:01:42]} Qd5 {[%emt 0:00:45]} 13. Nf4 {[%emt 0:14:39]} Qd6 {[%emt 0:00:19]} 14. Nh5 {[%emt 0:06:56]} Ng4 {[%emt 0:00:51] B45: Sicilian Four Knights} (14... Nxh5 15. Qxh5 h6 16. f4 f5 17. Bd2 Qf6 18. c4 Be6 19. b4 Qf7 20. Qxf7+ Kxf7 21. Rfe1 b6 22. Re2 Rac8 23. Rae1 {1-0 (50) Grischuk,A (2763)-Safarli,E (2620) Istanbul 2012}) 15. Bf4 {[%emt 0:06:34]} Qd8 {[%emt 0:00:08]} 16. Ng3 {[%emt 0:08:58]} Qh4 {[%emt 0:51:14]} 17. Ne4 $146 {[%emt 0:02:12]} ({Predecessor:} 17. Nf5 Bxf5 18. Bxf5 Nh6 19. Bg3 Qg5 20. Be4 f5 21. f4 Qg6 22. Bf3 {1-0 (56) Karpov,A-Alburt,L Daugavpils 1971}) 17... h6 {[%emt 0:04:08]} 18. Bg3 {[%emt 0:05:10]} Qd8 {[%emt 0:01:09]} 19. Bc4 {[%emt 0:12:27]} Nge5 {[%emt 0:01:32]} 20. Ba2 {[%emt 0:00:26]} Bf5 {[%emt 0:02:28]} 21. Re1 $11 {[%emt 0:01:31]} (21. Bxe5 $5 Nxe5 22. Ng3 $11) 21... Re8 {[%emt 0:05:41]} 22. Qd2 {[%emt 0:05:53]} b6 {[%emt 0:06:09]} 23. f3 {[%emt 0:01:54]} Be6 {[%emt 0:01:35]} 24. Bxe6 {[%emt 0:04:08]} Rxe6 {[%emt 0:00:11]} 25. b3 {[%emt 0:00:12]} Qd5 {[%emt 0:05:31]} 26. c4 {[%emt 0:01:18]} Qd7 {[%emt 0:00:49]} 27. f4 {[%emt 0:00:28]} Ng4 {[%emt 0:06:43]} 28. f5 {[%emt 0:00:19]} Ree8 {[%emt 0:00:29]} 29. f6 {[%emt 0:03:06]} Qf5 {[%emt 0:00:40]} 30. Nd6 {[%emt 0:00:40]} Rxe1+ {[%emt 0:00:20]} 31. Rxe1 {[%emt 0:00:06]} Qxf6 {[%emt 0:01:12]} 32. Rf1 {[%emt 0:00:05]} Qe6 {[%emt 0:00:54]} 33. Nf5 {[%emt 0:01:27]} Ne3 {[%emt 0:00:57]} 34. Nxe3 {[%emt 0:00:33]} dxe3 {[%emt 0:01:05]} 35. Qd5 {[%emt 0:00:28]} Re8 {[%emt 0:02:06]} 36. Re1 {[%emt 0:00:29]} Na5 {[%emt 0:01:27]} 37. Bf4 {[%emt 0:00:31]} Qxd5 {[%emt 0:00:29]} 38. cxd5 {[%emt 0:00:05]} Nxb3 {[%emt 0:00:23]} 39. Rxe3 {[%emt 0:00:55]} Rxe3 {[%emt 0:00:18]} 40. Bxe3 {[%emt 0:00:05]} Kf8 {[%emt 0:00:39]} 41. Bf4 {[%emt 0:04:04]} Ke7 {[%emt 0:00:07]} 42. Kf2 {[%emt 0:06:05]} Na5 {[%emt 0:07:19]} 43. Bb8 {[%emt 0:05:19]} a6 {[%emt 0:00:40]} 44. Kf3 {[%emt 0:09:56]} Nc4 {[%emt 0:04:44]} 45. a4 {[%emt 0:01:59]} g6 {[%emt 0:04:20]} 46. Ke4 {[%emt 0:03:55]} Nb2 {[%emt 0:01:42]} 47. Bf4 {[%emt 0:00:13]} h5 {[%emt 0:08:50]} 48. a5 {[%emt 0:01:31]} bxa5 {[%emt 0:00:23]} 49. Bc1 {[%emt 0:00:36]} Nc4 {[%emt 0:01:51]} 50. Kd4 {[%emt 0:00:14]} Nd6 {[%emt 0:00:33]} 51. Kc5 {[%emt 0:00:27]} Kd7 {[%emt 0:00:38]} 52. Kb6 {[%emt 0:01:11]} Nc4+ {[%emt 0:01:31]} 53. Kc5 {[%emt 0:00:06]} Ne5 {[%emt 0:00:28]} 54. Kd4 {[%emt 0:01:44]} f6 {[%emt 0:00:44]} 55. Ba3 {[%emt 0:00:02]} a4 {[%emt 0:01:31]} 56. Kc5 {[%emt 0:01:03]} Ng4 {[%emt 0:00:26]} 57. h3 {[%emt 0:00:31]} Ne3 {[%emt 0:00:27]} 58. g3 {[%emt 0:00:13]} Nc2 {[%emt 0:00:45] Kd4} 0-1

[Event "SVK Extraliga 2019-20"]
[Site "Slovakia"]
[Date "2019.10.19"]
[Round "1.6"]
[White "Frindt, Kornel"]
[Black "Maslikova, Veronika"]
[Result "0-1"]
[ECO "B56"]
[WhiteElo "2196"]
[BlackElo "2230"]
[Annotator "NA"]
[PlyCount "96"]
[EventDate "2019.10.19"]
[EventType "team-tourn"]
[EventCountry "SVK"]
[SourceTitle "playchess.com"]
[Source "ChessBase"]
[SourceQuality "1"]
[WhiteTeam "Kosice"]
[BlackTeam "Podhajska"]
[TimeControl "40/5400+30:1800+30"]

1. e4 c5 2. Nf3 d6 3. Bb5+ {[%emt 0:08:14]} Nc6 {[%emt 0:03:14]} 4. O-O {[%emt 0:03:26]} Bd7 {[%emt 0:01:19]} 5. d4 {[%emt 0:08:05]} cxd4 {[%emt 0:01:06]} 6. Nxd4 {[%emt 0:00:47]} Nf6 {[%emt 0:03:36]} 7. Nc3 {[%emt 0:00:52]} a6 {[%emt 0:06:17]} 8. Be2 {[%emt 0:06:48]} e6 {[%emt 0:06:29]} 9. a4 {[%emt 0:04:34]} Be7 {[%emt 0:03:42]} 10. Be3 {[%emt 0:04:52]} O-O {[%emt 0:03:35]} 11. f4 {[%emt 0:01:29]} Qc7 {[%emt 0:03:10]} 12. Nb3 {[%emt 0:05:07]} Nb4 {[%emt 0:15:08]} 13. a5 {[%emt 0:03:33]} Bc6 {[%emt 0:04:27]} 14. Bf3 {[%emt 0:02:17]} d5 {[%emt 0:05:46]} 15. e5 {[%emt 0:03:28]} Nd7 {[%emt 0:04:06]} 16. Bd4 {[%emt 0:04:25]} b5 {[%emt 0:07:22]} 17. Ne2 {[%emt 0:07:13]} Bb7 {[%emt 0:01:14]} 18. c3 {[%emt 0:01:16]} Nc6 {[%emt 0:00:02]} 19. Ng3 {[%emt 0:01:09]} Rac8 {[%emt 0:03:49]} 20. Rf2 {[%emt 0:06:30]} Rfe8 {[%emt 0:05:38]} 21. Bg4 {[%emt 0:04:05]} Bf8 {[%emt 0:01:53]} 22. Nf1 {[%emt 0:02:31]} b4 {[%emt 0:03:50]} 23. Ne3 {[%emt 0:00:39]} bxc3 {[%emt 0:00:24]} 24. bxc3 {[%emt 0:00:23]} Nxd4 {[%emt 0:02:00]} 25. cxd4 {[%emt 0:00:26]} Qc3 {[%emt 0:01:32]} 26. Rf3 {[%emt 0:01:42]} Qb4 {[%emt 0:02:10]} 27. Nc2 {[%emt 0:00:54]} Qc4 {[%emt 0:01:29]} 28. Ne3 {[%emt 0:00:49]} Qb4 {[%emt 0:00:07]} 29. Rb1 {[%emt 0:03:56]} Bc6 {[%emt 0:00:28]} 30. Rg3 {[%emt 0:01:32]} Rb8 {[%emt 0:01:41]} 31. f5 {[%emt 0:00:50]} Ba4 {[%emt 0:00:47]} 32. fxe6 fxe6 {[%emt 0:00:05]} 33. Nc2 {[%emt 0:05:37]} Qe7 {[%emt 0:00:25]} 34. Be2 {[%emt 0:00:33]} Bb5 {[%emt 0:00:41]} 35. Ne3 {[%emt 0:01:24]} Kh8 {[%emt 0:01:01]} 36. Bh5 {[%emt 0:00:18]} Rec8 {[%emt 0:00:47]} 37. Nc1 {[%emt 0:01:48]} Rc6 {[%emt 0:01:53]} 38. Rh3 {[%emt 0:00:21]} Qg5 {[%emt 0:01:04]} 39. Bf7 {[%emt 0:01:29]} Rbc8 {[%emt 0:00:17]} 40. Ne2 {[%emt 0:00:52]} Bxe2 {[%emt 0:04:09]} 41. Qxe2 {[%emt 0:30:19]} Qf4 {[%emt 0:32:44]} 42. Rf1 {[%emt 0:02:02]} Qe4 {[%emt 0:00:00]} 43. Qh5 {[%emt 0:00:00]} h6 {[%emt 0:00:00]} 44. Be8 {[%emt 0:00:00]} R6c7 {[%emt 0:00:00]} 45. Qf7 {[%emt 0:00:00]} Rd8 {[%emt 0:00:00]} 46. Qxe6 {[%emt 0:00:00]} Qxd4 {[%emt 0:00:00]} 47. Qxd5 {[%emt 0:00:00]} Bc5 {[%emt 0:00:00]} 48. Bxd7 {[%emt 0:01:17]} Qxd5 {[%emt 0:00:00]} 0-1

[Event "SVK Extraliga 2019-20"]
[Site "Slovakia"]
[Date "2019.10.20"]
[Round "1.6"]
[White "Bochnickova, Andrea"]
[Black "Banas, Kamil"]
[Result "0-1"]
[ECO "B96"]
[WhiteElo "2122"]
[BlackElo "2280"]
[Annotator "ChessBase"]
[PlyCount "66"]
[EventDate "2019.10.19"]
[EventType "team-tourn"]
[EventCountry "SVK"]
[SourceTitle "playchess.com"]
[Source "ChessBase"]
[SourceQuality "1"]
[WhiteTeam "Bratislava"]
[BlackTeam "Modra"]
[WhiteTeamCountry "SVK"]
[BlackTeamCountry "SVK"]
[TimeControl "40/5400+30:1800+30"]

1. e4 {[%emt 0:00:00]} c5 {[%emt 0:00:00]} 2. Nf3 {[%emt 0:00:00]} d6 {[%emt 0:00:00]} 3. d4 {[%emt 0:00:00]} cxd4 {[%emt 0:00:00]} 4. Nxd4 {[%emt 0:00:02]} Nf6 {[%emt 0:00:00]} 5. Nc3 {[%emt 0:00:10]} a6 {[%emt 0:00:00]} 6. Bg5 {[%emt 0:00:28]} e6 {[%emt 0:00:00]} 7. f4 {[%emt 0:00:59]} Qc7 {[%emt 0:00:13]} 8. Qe2 {[%emt 0:04:01]} b5 {[%emt 0:01:55]} 9. a3 {[%emt 0:06:23]} Bb7 {[%emt 0:03:04]} 10. O-O-O {[%emt 0:03:13]} Nbd7 {[%emt 0:04:23]} 11. g4 {[%emt 0:11:52]} Nb6 {[%emt 0:03:11]} 12. Bg2 {[%emt 0:09:55]} Be7 {[%emt 0:17:25]} 13. Kb1 {[%emt 0:13:26]} Nc4 {[%emt 0:03:12]} 14. Rd3 {[%emt 0:01:31]} Rb8 {[%emt 0:04:25]} 15. Re1 {[%emt 0:03:29]} Ba8 {[%emt 0:04:26]} 16. e5 {[%emt 0:05:17]} dxe5 {[%emt 0:04:18]} 17. fxe5 {[%emt 0:05:02]} Nd7 {[%emt 0:01:44]} 18. Bxa8 {[%emt 0:08:34]} Bxg5 {[%emt 0:04:23]} 19. Bc6 {[%emt 0:00:51]} O-O {[%emt 0:05:30]} 20. Bxd7 {[%emt 0:05:04]} Qxd7 {[%emt 0:00:02]} 21. Ne4 {[%emt 0:05:09]} Bf4 {[%emt 0:06:03]} 22. Nf3 {[%emt 0:03:52]} Qc7 {[%emt 0:01:20]} 23. Neg5 {[%emt 0:01:58]} Qc6 {[%emt 0:11:48]} 24. Nh3 {[%emt 0:03:06]} Be3 {[%emt 0:01:07]} 25. Rxe3 {[%emt 0:00:47]} Nxe3 {[%emt 0:00:04]} 26. Qxe3 {[%emt 0:00:11]} b4 {[%emt 0:00:54]} 27. Nhg5 {[%emt 0:03:33]} bxa3 {[%emt 0:03:59]} 28. Qxa3 {[%emt 0:00:20]} Rfd8 {[%emt 0:00:52]} 29. Qe3 {[%emt 0:03:07]} Rb4 {[%emt 0:01:20]} 30. h3 {[%emt 0:01:05]} h6 {[%emt 0:03:32]} 31. Ne4 {[%emt 0:00:09]} Rdb8 {[%emt 0:00:14]} 32. b3 {[%emt 0:00:18]} a5 {[%emt 0:00:16]} 33. Nd4 {[%emt 0:00:58]} Qd5 {[%emt 0:01:44]} 0-1

[Event "SVK Extraliga 2019-20"]
[Site "Slovakia"]
[Date "2019.10.19"]
[Round "1.7"]
[White "Jurcik, Martin"]
[Black "Danada, Tomas"]
[Result "1/2-1/2"]
[ECO "A30"]
[WhiteElo "2360"]
[BlackElo "2266"]
[Annotator "NA"]
[PlyCount "71"]
[EventDate "2019.10.19"]
[EventType "team-tourn"]
[EventCountry "SVK"]
[SourceTitle "playchess.com"]
[Source "ChessBase"]
[SourceQuality "1"]
[WhiteTeam "Zilina"]
[BlackTeam "Prakovce"]
[TimeControl "40/5400+30:1800+30"]

1. c4 {[%emt 0:00:00]} e6 {[%emt 0:00:00]} 2. Nf3 {[%emt 0:00:18]} d5 {[%emt 0:00:00]} 3. e3 {[%emt 0:00:45]} Nf6 {[%emt 0:00:00]} 4. b3 {[%emt 0:00:50]} Be7 {[%emt 0:00:23]} 5. Bb2 {[%emt 0:00:53]} O-O {[%emt 0:00:52]} 6. Be2 {[%emt 0:04:48]} b6 {[%emt 0:02:02]} 7. O-O {[%emt 0:06:16]} Bb7 {[%emt 0:00:33]} 8. d3 {[%emt 0:03:40]} c5 {[%emt 0:06:53]} 9. Nbd2 {[%emt 0:03:28]} Nc6 {[%emt 0:01:25]} 10. Ne5 {[%emt 0:18:37]} Nxe5 {[%emt 0:04:43]} 11. Bxe5 {[%emt 0:00:03]} Bd6 {[%emt 0:00:59]} 12. Bb2 {[%emt 0:11:20]} Qc7 {[%emt 0:03:54]} 13. h3 {[%emt 0:00:50]} Bh2+ {[%emt 0:03:35]} 14. Kh1 {[%emt 0:00:23]} Be5 {[%emt 0:00:03]} 15. Qc2 {[%emt 0:02:39]} Bxb2 {[%emt 0:08:25]} 16. Qxb2 {[%emt 0:00:04]} Rad8 {[%emt 0:00:31]} 17. Rac1 {[%emt 0:06:46]} d4 {[%emt 0:05:12]} 18. e4 {[%emt 0:12:21]} Qf4 {[%emt 0:02:34]} 19. g3 {[%emt 0:09:49]} Qh6 {[%emt 0:01:41]} 20. Kh2 {[%emt 0:00:02]} Nd7 {[%emt 0:00:31]} 21. f4 {[%emt 0:08:58]} f5 {[%emt 0:01:49]} 22. exf5 {[%emt 0:01:03]} exf5 {[%emt 0:02:28]} 23. Bf3 {[%emt 0:00:02]} Bxf3 {[%emt 0:00:30]} 24. Nxf3 {[%emt 0:00:02]} Rde8 {[%emt 0:02:50]} 25. Rce1 {[%emt 0:00:03]} Qh5 {[%emt 0:01:54]} 26. Qg2 {[%emt 0:02:52]} Nf6 {[%emt 0:08:57]} 27. Kg1 {[%emt 0:05:32]} h6 {[%emt 0:04:24]} 28. Re5 {[%emt 0:00:03]} Rxe5 {[%emt 0:05:17]} 29. fxe5 {[%emt 0:00:02]} Nh7 {[%emt 0:01:47]} 30. e6 {[%emt 0:02:00]} Ng5 {[%emt 0:01:22]} 31. Nxg5 {[%emt 0:00:29]} Qxg5 {[%emt 0:00:06]} 32. Re1 {[%emt 0:00:10]} Re8 {[%emt 0:01:46]} 33. Kh2 {[%emt 0:00:50]} f4 {[%emt 0:00:30]} 34. gxf4 {[%emt 0:00:31]} Qxg2+ {[%emt 0:06:10]} 35. Kxg2 {[%emt 0:00:04]} g6 {[%emt 0:00:05]} 36. Kf3 {[%emt 0:00:53]} 1/2-1/2

[Event "SVK Extraliga 2019-20"]
[Site "Slovakia"]
[Date "2019.10.19"]
[Round "1.7"]
[White "Farkas, Gabor"]
[Black "Sepesi, Samuel"]
[Result "1-0"]
[ECO "E73"]
[WhiteElo "2355"]
[BlackElo "2183"]
[Annotator "NA"]
[PlyCount "59"]
[EventDate "2019.10.19"]
[EventType "team-tourn"]
[EventCountry "SVK"]
[SourceTitle "playchess.com"]
[Source "ChessBase"]
[SourceQuality "1"]
[WhiteTeam "Streda"]
[BlackTeam "Humenne"]
[TimeControl "40/5400+30:1800+30"]

{[%evp 26,52,81,74,32767,32767,71,72,62,58,76,45,62,53,63,75,70,57,90,47,84,54,116,32767,153,32767,32767,145,228]} 1. d4 {[%emt 0:00:00]} Nf6 {[%emt 0:00:00]} 2. c4 {[%emt 0:00:00]} g6 {[%emt 0:00:00]} 3. Nc3 {[%emt 0:00:00]} Bg7 {[%emt 0:00:04]} 4. e4 {[%emt 0:00:00]} d6 {[%emt 0:00:05]} 5. Be2 {[%emt 0:00:00]} O-O {[%emt 0:00:08]} 6. Bg5 {[%emt 0:00:00]} h6 {[%emt 0:00:22]} 7. Be3 {[%emt 0:00:02]} c5 {[%emt 0:00:06]} 8. d5 {[%emt 0:01:20]} e6 {[%emt 0:02:29]} 9. Qd2 {[%emt 0:01:26]} Kh7 {[%emt 0:00:08]} 10. h3 {[%emt 0:04:20]} exd5 {[%emt 0:04:46]} 11. exd5 {[%emt 0:00:11]} Re8 {[%emt 0:00:12]} 12. Nf3 {[%emt 0:00:40]} b5 {[%emt 0:08:58] E74: King's Indian: Averbakh Variation: 6...c5} (12... Bf5 13. O-O Ne4 14. Nxe4 Bxe4 15. Rae1 Nd7 16. b3 b5 17. cxb5 Nb6 18. Bc4 Bxf3 19. gxf3 Qh4 20. Bf4 Nd7 21. Rxe8 Rxe8 {1-0 (55) Mamedyarov,S (2756)-Berg,E (2616) Khanty-Mansiysk 2010}) 13. cxb5 {[%emt 0:06:00]} Ne4 {[%emt 0:04:13]} 14. Nxe4 {[%emt 0:02:00]} Rxe4 {[%emt 0:00:04]} 15. O-O {[%emt 0:01:13]} Rb4 $146 {[%emt 0:09:21]} ({Predecessor:} 15... a6 16. bxa6 Rb4 17. Rab1 Bf5 18. a3 Ra4 19. Rbc1 Nxa6 20. Bb5 {1-0 (62) Lalith,B (2484)-Vishnu,P (2392) New Delhi 2012}) 16. Rab1 {[%emt 0:17:13]} Bf5 {[%emt 0:10:11]} 17. Bd3 {[%emt 0:00:28]} Bxd3 {[%emt 0:00:06]} 18. Qxd3 {[%emt 0:00:03]} a6 {[%emt 0:00:24]} 19. b3 {[%emt 0:04:44]} Rxb5 {[%emt 0:06:36]} 20. Rfe1 {[%emt 0:03:04]} Nd7 {[%emt 0:03:30]} 21. Bf4 {[%emt 0:02:23]} Qf6 {[%emt 0:14:23]} 22. g3 {[%emt 0:09:26]} Nb6 {[%emt 0:08:20]} 23. Rbd1 {[%emt 0:06:22]} Rd8 {[%emt 0:07:19]} 24. h4 {[%emt 0:01:28]} Qc3 {[%emt 0:06:09]} 25. Qe2 {[%emt 0:04:29]} c4 {[%emt 0:11:47]} 26. Rc1 {[%emt 0:05:17]} Qf6 $18 {[%emt 0:00:07]} (26... Qd3 $16) 27. Ng5+ {[%emt 0:03:27]} Kg8 {[%emt 0:01:01]} 28. Ne4 {[%emt 0:00:10]} Qb2 {[%emt 0:02:39]} 29. Rc2 {[%emt 0:02:49]} Qd4 {[%emt 0:00:29]} 30. Rd2 {[%emt 0:00:20]} 1-0